bitfinex/quotes_BTCUSD_20230114
["timestamp","ask_amount","ask_price","bid_price","bid_amount"]
[1673725938193,1.425522,20822.0,20821.0,0.00691939]
[1673725938460,1.425522,20822.0,20821.0,0.00685279]
[1673725938731,0.1,20821.0,20820.0,0.00614329]
[1673725939013,0.695284,20821.0,20820.0,0.00614329]
[1673725939262,1.41665961,20821.0,20820.0,0.00614329]
[1673725939532,0.1,20820.0,20817.0,0.00716225]
[1673725939832,0.25556,20818.0,20817.0,0.00716225]
[1673725940063,0.35556,20818.0,20817.0,0.00716225]
[1673725940566,0.35556,20818.0,20817.0,6.225e-05]
[1673725940865,0.1,20817.0,20816.0,0.00408452]
[1673725941144,1.38803175,20817.0,20816.0,8.452e-05]
[1673725941401,0.1,20816.0,20814.0,0.00550611]
[1673725941696,2.13390173,20815.0,20814.0,0.00550611]
[1673725942462,2.13390173,20815.0,20808.0,0.00104017]
[1673725942463,2.54850173,20815.0,20808.0,0.00104017]
[1673725942761,0.13736,20812.0,20808.0,0.00104017]
[1673725943039,1.53977373,20811.0,20808.0,0.00104017]
[1673725943297,0.4148,20810.0,20808.0,0.00104017]
[1673725943560,1.53985773,20809.0,20808.0,0.00104017]
[1673725943829,1.81511028,20809.0,20808.0,0.00104017]
[1673725944083,1.20398828,20809.0,20808.0,0.00104017]
[1673725948738,1.30398828,20809.0,20808.0,0.00104017]
[1673725949284,1.20398828,20809.0,20808.0,0.00104017]
[1673725949804,1.68454928,20809.0,20808.0,0.00104017]
[1673725950565,1.98454928,20809.0,20808.0,0.00104017]
[1673725950824,2.26264832,20809.0,20808.0,0.00104017]
[1673725951094,1.82429673,20809.0,20808.0,0.00104017]
[1673725951356,1.84666673,20809.0,20808.0,0.00104017]
[1673725951863,1.66189187,20809.0,20808.0,0.00104017]
[1673725952129,1.18133087,20809.0,20808.0,0.00104017]
[1673725952363,0.92873573,20809.0,20808.0,0.58513784]
[1673725953424,0.92873573,20809.0,20808.0,0.99224052]
[1673725953689,0.21521355,20813.0,20809.0,0.40697307]
[1673725953941,0.21521355,20813.0,20812.0,0.115]
[1673725953942,0.0009529,20813.0,20812.0,0.115]
[1673725954193,0.48038,20817.0,20812.0,0.62561495]
[1673725954194,0.58038,20817.0,20812.0,0.62561495]
[1673725954456,0.25852368,20815.0,20813.0,0.39509295]
[1673725954764,0.2649749,20814.0,20812.0,0.115]
[1673725954964,0.2649749,20814.0,20813.0,0.19072595]
[1673725955210,0.2649749,20814.0,20813.0,0.319957]
[1673725955460,0.2649749,20814.0,20812.0,0.115]
[1673725955721,0.22392097,20813.0,20812.0,0.115]
[1673725955990,0.22392097,20813.0,20809.0,0.40697307]
[1673725955991,0.24627068,20812.0,20809.0,0.40697307]
[1673725956257,0.480493,20812.0,20809.0,0.40697307]
[1673725956515,0.27587216,20811.0,20809.0,0.40697307]
[1673725956784,0.1,20810.0,20809.0,0.40697307]
[1673725957293,0.580538,20810.0,20809.0,0.40697307]
[1673725957762,0.480538,20810.0,20809.0,0.40697307]
[1673725958865,0.480494,20812.0,20809.0,0.65393613]
[1673725959121,0.480494,20812.0,20810.0,0.23098267]
[1673725959386,0.27853486,20812.0,20810.0,0.23098267]
[1673725959907,0.48143844,20814.0,20810.0,0.19072595]
[1673725960159,0.00099044,20814.0,20812.0,0.1148]
[1673725960417,0.28927383,20814.0,20813.0,0.204316]
[1673725960707,0.28828339,20814.0,20813.0,0.204316]
[1673725961700,0.48137013,20817.0,20813.0,0.204316]
[1673725961950,0.25581307,20816.0,20814.0,0.319957]
[1673725962204,0.25581307,20816.0,20812.0,0.75483565]
[1673725962961,0.25581307,20816.0,20812.0,0.27435165]
[1673725963211,0.3,20815.0,20812.0,0.27435165]
[1673725963486,0.780426,20815.0,20812.0,0.27435165]
[1673725963734,0.480426,20815.0,20812.0,0.27435165]
[1673725964239,0.72750391,20815.0,20812.0,0.27435165]
[1673725964751,0.61815813,20817.0,20812.0,0.4650776]
[1673725965016,0.25230803,20817.0,20813.0,0.51068295]
[1673725965267,0.25230803,20817.0,20813.0,0.67117895]
[1673725965523,0.29626425,20816.0,20813.0,0.67117895]
[1673725965782,0.29626425,20816.0,20813.0,0.480453]
[1673725966029,0.22541651,20814.0,20811.0,0.75662481]
[1673725966279,0.22541651,20814.0,20811.0,0.27613281]
[1673725966534,0.24778651,20814.0,20811.0,0.27613281]
[1673725966789,0.24778651,20814.0,20810.0,0.9863]
[1673725966790,0.70586651,20814.0,20810.0,0.9863]
[1673725967040,0.72197179,20816.0,20810.0,1.29092595]
[1673725967298,0.72197179,20816.0,20812.0,0.1141]
[1673725967299,0.24155079,20816.0,20812.0,0.1141]
[1673725967554,0.24155079,20816.0,20813.0,0.51068295]
[1673725967810,0.00099013,20817.0,20813.0,0.19072595]
[1673725968062,0.2772785,20816.0,20813.0,0.19072595]
[1673725968315,0.25094254,20815.0,20812.0,0.1141]
[1673725968565,0.28103476,20813.0,20811.0,0.28888544]
[1673725969126,0.61278037,20813.0,20809.0,0.40697307]
[1673725969373,0.3,20812.0,20809.0,0.40697307]
[1673725969626,0.115,20810.0,20809.0,0.40697307]
[1673725969872,0.895538,20810.0,20809.0,0.40697307]
[1673725971379,0.595538,20810.0,20809.0,0.40697307]
[1673725972095,1.15718188,20810.0,20809.0,0.40697307]
[1673725972343,0.895538,20810.0,20809.0,0.40697307]
[1673725972607,0.995538,20810.0,20809.0,0.40697307]
[1673725973605,1.376076,20810.0,20809.0,0.40697307]
[1673725974608,1.79853236,20810.0,20809.0,0.40697307]
[1673725974839,1.79853236,20810.0,20809.0,0.4068653]
[1673725975104,1.51918265,20810.0,20809.0,0.4068653]
[1673725975849,1.73384263,20810.0,20809.0,0.4068653]
[1673725976573,1.84989591,20810.0,20809.0,0.4068653]
[1673725976844,0.3,20809.0,20795.0,0.35547375]
[1673725977093,0.480833,20798.0,20796.0,0.72476171]
[1673725977336,0.71809163,20796.0,20789.0,1.44234959]
[1673725977592,0.43110072,20790.0,20789.0,1.0868235]
[1673725977835,1.99477,20790.0,20789.0,1.0868235]
[1673725978087,3.49758357,20790.0,20789.0,0.22787391]
[1673725978346,3.1719717,20790.0,20783.0,1.47051542]
[1673725978602,0.14304864,20788.0,20783.0,1.66124137]
[1673725978861,0.50063052,20789.0,20783.0,1.47051542]
[1673725978862,0.1,20789.0,20783.0,1.47051542]
[1673725979108,0.00098655,20788.0,20785.0,0.1138]
[1673725979666,0.00098655,20788.0,20784.0,0.1139]
[1673725979895,0.48205155,20788.0,20786.0,0.22684743]
[1673725980419,0.1,20786.0,20784.0,0.23522049]
[1673725980670,1.558348,20785.0,20783.0,1.47051542]
[1673725981200,0.47720169,20784.0,20783.0,1.47051542]
[1673725981490,1.04458908,20784.0,20783.0,1.47051542]
[1673725981734,1.10680169,20784.0,20783.0,1.47051542]
[1673725981977,0.6296,20784.0,20783.0,1.47051542]
[1673725982234,1.19229207,20784.0,20783.0,1.47051542]
[1673725982734,1.07729207,20784.0,20783.0,1.71692929]
[1673725982972,0.04884053,20784.0,20783.0,1.66124137]
[1673725983222,6e-05,20785.0,20783.0,1.47051542]
[1673725983740,6e-05,20785.0,20784.0,0.28469272]
[1673725983972,0.98117943,20787.0,20785.0,3.524e-05]
[1673725984474,0.1,20786.0,20785.0,3.524e-05]
[1673725984731,0.98117943,20787.0,20785.0,3.524e-05]
[1673725985491,0.1,20786.0,20785.0,3.524e-05]
[1673725985738,0.50009243,20787.0,20785.0,3.524e-05]
[1673725987022,1.00354043,20787.0,20785.0,3.524e-05]
[1673725987291,0.1,20786.0,20785.0,3.524e-05]
[1673725988312,0.515,20786.0,20785.0,3.524e-05]
[1673725988566,0.212747,20786.0,20785.0,3.524e-05]
[1673725988819,0.512747,20786.0,20785.0,3.524e-05]
[1673725989560,0.98994869,20786.0,20785.0,3.524e-05]
[1673725990359,1.16049533,20786.0,20785.0,3.524e-05]
[1673725990607,1.79670283,20786.0,20785.0,3.524e-05]
[1673725991165,0.05017671,20777.0,20770.0,0.35664513]
[1673725991387,0.47720169,20775.0,20774.0,7.66e-05]
[1673725991660,0.47720169,20775.0,20770.0,0.35664513]
[1673725991661,0.1,20774.0,20770.0,0.56838221]
[1673725991885,2.91472387,20774.0,20772.0,0.29691917]
[1673725992138,2.81472387,20774.0,20773.0,0.41959911]
[1673725992392,0.2,20773.0,20770.0,0.35664513]
[1673725992647,0.2,20773.0,20768.0,2.21612431]
[1673725992648,0.2284,20771.0,20768.0,2.21612431]
[1673725992951,0.3436,20769.0,20768.0,2.21612431]
[1673725993141,1.60228769,20769.0,20768.0,2.21612431]
[1673725993390,1.70228769,20769.0,20766.0,0.21352177]
[1673725993644,0.25157,20767.0,20766.0,0.21352177]
[1673725993896,2.11513769,20767.0,20766.0,0.21352177]
[1673725994404,2.11513769,20767.0,20766.0,1.77e-06]
[1673725994649,2.43636006,20767.0,20766.0,1.77e-06]
[1673725994927,2.9944,20767.0,20765.0,8.88e-06]
[1673725995166,0.481664,20762.0,20749.0,0.27823582]
[1673725995430,0.481664,20762.0,20745.0,0.70349407]
[1673725995431,0.59220169,20750.0,20745.0,0.70349407]
[1673725995696,0.6,20758.0,20745.0,0.70349407]
[1673725995697,2.78876159,20749.0,20745.0,0.70349407]
[1673725995950,2.78876159,20749.0,20745.0,0.16861307]
[1673725995951,0.02237,20746.0,20745.0,0.16861307]
[1673725996216,1.47211169,20746.0,20742.0,0.94351741]
[1673725996454,0.46974659,20748.0,20743.0,0.6]
[1673725996455,0.35584659,20748.0,20743.0,0.6]
[1673725996761,0.67025748,20753.0,20744.0,0.28972595]
[1673725996964,0.0009787,20748.0,20746.0,0.6]
[1673725997210,0.81419174,20744.0,20743.0,0.1]
[1673725997460,0.00013,20751.0,20743.0,0.435621]
[1673725997728,1.26792764,20750.0,20742.0,0.94351741]
[1673725997965,0.00013,20751.0,20742.0,1.05761741]
[1673725998216,0.00013,20751.0,20748.0,0.1149334]
[1673725998474,0.00013,20751.0,20749.0,0.16744417]
[1673725998760,0.00013,20751.0,20750.0,0.206042]
[1673725998978,0.09013,20756.0,20750.0,0.206042]
[1673725999266,0.68095686,20748.0,20745.0,0.5573057]
[1673725999490,0.19072595,20747.0,20744.0,0.115]
[1673725999750,0.19072595,20746.0,20744.0,0.06907617]
[1673726000258,0.68095686,20748.0,20743.0,0.24183077]
[1673726000259,0.48123108,20745.0,20743.0,0.24183077]
[1673726000520,0.48123108,20745.0,20742.0,0.94351741]
[1673726000521,0.30572595,20745.0,20742.0,0.94351741]
[1673726000745,0.19072595,20744.0,20742.0,0.94351741]
[1673726001250,0.79535686,20748.0,20742.0,0.94351741]
[1673726001507,0.00097574,20749.0,20743.0,0.206126]
[1673726001749,0.19170169,20749.0,20747.0,0.1139]
[1673726002007,0.6,20753.0,20748.0,0.206071]
[1673726002259,0.1,20752.0,20747.0,0.1139]
[1673726002545,0.00096089,20753.0,20748.0,0.115]
[1673726002767,0.00096089,20753.0,20752.0,0.1139]
[1673726003020,1.60231897,20756.0,20752.0,0.1224]
[1673726003268,1.00231897,20756.0,20753.0,0.1147]
[1673726004305,0.6,20758.0,20755.0,0.115]
[1673726004551,0.00105375,20760.0,20756.0,0.115]
[1673726004808,0.25131273,20759.0,20757.0,0.205962]
[1673726005079,0.25131273,20759.0,20749.0,0.27539026]
[1673726005080,0.29245474,20752.0,20749.0,0.27539026]
[1673726005313,0.51107295,20751.0,20749.0,0.27539026]
[1673726005612,0.19072595,20750.0,20749.0,0.27539026]
[1673726006054,0.6,20753.0,20749.0,0.27539026]
[1673726006316,0.79072595,20753.0,20747.0,0.481988]
[1673726006584,0.19072595,20753.0,20747.0,0.481988]
[1673726006900,0.00099688,20754.0,20752.0,0.115]
[1673726007133,0.00099688,20754.0,20749.0,0.64410117]
[1673726007390,0.38264368,20756.0,20753.0,0.481858]
[1673726007910,0.38264368,20756.0,20754.0,0.214488]
[1673726008182,0.38264368,20756.0,20755.0,0.802788]
[1673726008436,0.38264368,20756.0,20755.0,0.811288]
[1673726008935,0.60104659,20760.0,20755.0,0.811288]
[1673726009188,0.60104659,20760.0,20755.0,0.605311]
[1673726009502,0.60104659,20760.0,20756.0,0.20596]
[1673726009707,0.60104659,20760.0,20756.0,0.481777]
[1673726009952,0.60104659,20760.0,20757.0,0.205949]
[1673726010238,0.6,20760.0,20756.0,0.481777]
[1673726010451,0.00099307,20762.0,20758.0,0.115]
[1673726010703,0.00099307,20762.0,20758.0,0.596724]
[1673726011209,0.6,20760.0,20758.0,0.596724]
[1673726011462,0.6,20760.0,20759.0,0.205923]
[1673726011716,0.00099307,20762.0,20759.0,0.205923]
[1673726011717,0.60099307,20762.0,20759.0,0.205923]
[1673726012041,0.60099307,20762.0,20758.0,1.078457]
[1673726012209,0.60099307,20762.0,20759.0,0.205922]
[1673726012457,0.24600798,20761.0,20758.0,0.596724]
[1673726012707,0.46143629,20758.0,20755.0,0.22668634]
[1673726012958,0.19072595,20757.0,20754.0,0.481824]
[1673726013210,0.19072595,20757.0,20752.0,0.26820489]
[1673726013211,0.79072595,20756.0,20752.0,0.26820489]
[1673726013471,0.55665279,20757.0,20746.0,0.482011]
[1673726013472,0.49072595,20755.0,20753.0,0.25020592]
[1673726013723,0.6,20753.0,20747.0,0.93348322]
[1673726013997,0.19072595,20752.0,20746.0,0.482011]
[1673726014242,0.19072595,20751.0,20747.0,0.206063]
[1673726014508,0.19072595,20750.0,20746.0,0.597011]
[1673726014763,0.72451813,20758.0,20749.0,0.115]
[1673726015014,0.0009538,20753.0,20752.0,0.1]
[1673726015261,0.46143629,20758.0,20752.0,0.917693]
[1673726015503,0.6,20756.0,20752.0,0.481881]
[1673726015780,0.19072595,20755.0,20753.0,0.205998]
[1673726016008,0.6,20754.0,20751.0,0.27736827]
[1673726016265,0.6,20754.0,20749.0,0.28990141]
[1673726016266,0.19072595,20753.0,20749.0,0.28990141]
[1673726016535,0.6,20750.0,20747.0,0.596979]
[1673726016768,0.6,20750.0,20748.0,0.26519252]
[1673726016769,0.19072595,20749.0,20748.0,0.26519252]
[1673726017093,0.19072595,20749.0,20748.0,0.206052]
[1673726017270,0.35155265,20747.0,20744.0,1.528853]
[1673726017515,0.35155265,20747.0,20744.0,0.597053]
[1673726017516,0.19072595,20746.0,20744.0,0.597053]
[1673726017764,0.35155265,20747.0,20745.0,0.1138]
[1673726018010,0.35155265,20747.0,20746.0,1.07784]
[1673726018504,0.35155265,20747.0,20746.0,1.19234]
[1673726018759,0.35155265,20747.0,20746.0,1.49234]
[1673726019514,0.35155265,20747.0,20746.0,1.19234]
[1673726019749,0.35155265,20747.0,20746.0,1.49234]
[1673726020253,0.00095759,20752.0,20746.0,1.96954169]
[1673726020498,0.00095759,20752.0,20751.0,0.3444]
[1673726020743,0.6,20756.0,20751.0,1.790112]
[1673726021016,0.6,20756.0,20755.0,0.115]
[1673726021267,0.6,20756.0,20755.0,0.963622]
[1673726022056,0.6,20756.0,20755.0,1.078622]
[1673726022296,6e-05,20757.0,20755.0,1.078622]
[1673726022547,0.46143629,20758.0,20756.0,0.1138]
[1673726022806,0.46143629,20758.0,20757.0,0.96353]
[1673726023061,1.26422186,20758.0,20751.0,0.28561174]
[1673726023331,1.26422186,20758.0,20748.0,0.481964]
[1673726023332,1.32845946,20754.0,20748.0,0.481964]
[1673726023562,0.1139,20752.0,20750.0,0.23721804]
[1673726023803,1.11107095,20751.0,20750.0,0.23721804]
[1673726024061,0.6,20751.0,20750.0,0.23721804]
[1673726024314,0.6,20751.0,20748.0,0.481964]
[1673726024561,0.6,20751.0,20750.0,0.2850585]
[1673726024562,0.79072595,20751.0,20750.0,0.2850585]
[1673726024804,0.6,20751.0,20748.0,0.481964]
[1673726025069,0.79072595,20751.0,20748.0,0.481964]
[1673726025343,0.79072595,20751.0,20747.0,0.25831106]
[1673726025344,0.19072595,20750.0,20747.0,0.25831106]
[1673726025578,0.19072595,20750.0,20740.0,0.482148]
[1673726025579,0.6,20748.0,20739.0,0.00019]
[1673726025828,0.6,20742.0,20739.0,0.00019]
[1673726026081,0.19072595,20741.0,20738.0,0.482198]
[1673726026330,0.6,20742.0,20740.0,0.29101811]
[1673726026584,0.6,20745.0,20740.0,0.60020182]
[1673726026832,0.00095655,20743.0,20740.0,0.60020182]
[1673726027078,0.00095655,20743.0,20740.0,0.59020182]
[1673726027830,0.00095655,20743.0,20741.0,0.1]
[1673726028078,0.00095655,20743.0,20742.0,0.482113]
[1673726028321,0.6,20745.0,20742.0,0.482113]
[1673726028866,6e-05,20743.0,20742.0,0.482113]
[1673726029383,6e-05,20743.0,20742.0,0.782113]
[1673726029629,6e-05,20743.0,20742.0,0.777113]
[1673726031395,6e-05,20743.0,20742.0,1.39381469]
[1673726031895,0.00095525,20747.0,20743.0,0.1]
[1673726032219,0.00095525,20747.0,20746.0,0.1395]
[1673726032434,0.00095525,20747.0,20746.0,1.58556]
[1673726032688,0.6,20749.0,20746.0,1.88556]
[1673726032958,0.6,20749.0,20748.0,0.1395]
[1673726033210,0.0009862,20752.0,20748.0,1.585422]
[1673726033461,0.96395258,20751.0,20749.0,0.28872471]
[1673726033714,0.96395258,20751.0,20750.0,0.963854]
[1673726034476,0.96395258,20751.0,20750.0,1.102154]
[1673726034745,1.32845946,20754.0,20750.0,1.402154]
[1673726034988,1.32845946,20754.0,20752.0,0.1395]
[1673726035245,0.96381805,20753.0,20752.0,0.2395]
[1673726035519,1.32845946,20754.0,20752.0,2.64422569]
[1673726035757,1.32845946,20754.0,20745.0,0.14368125]
[1673726035758,2.815433,20753.0,20745.0,0.14368125]
[1673726036034,2.815433,20753.0,20741.0,3.10704374]
[1673726036035,0.6,20746.0,20741.0,0.2111311]
[1673726036281,0.6,20746.0,20739.0,0.43104374]
[1673726036282,0.211827,20745.0,20742.0,0.21121297]
[1673726036548,0.211827,20745.0,20743.0,0.22991093]
[1673726036549,0.320345,20744.0,20743.0,0.22991093]
[1673726036829,0.320345,20744.0,20740.0,0.2423208]
[1673726036830,0.6,20743.0,20740.0,0.2423208]
[1673726037081,3.38369793,20742.0,20737.0,0.02463448]
[1673726037393,0.7548946,20735.0,20733.0,0.02133676]
[1673726037652,0.39927116,20734.0,20733.0,0.02133676]
[1673726037911,0.75813416,20734.0,20733.0,0.02133676]
[1673726038154,0.7402246,20735.0,20733.0,0.11837676]
[1673726038432,0.7328946,20735.0,20734.0,0.61580169]
[1673726038698,0.43098387,20741.0,20735.0,0.1]
[1673726038699,0.14366091,20741.0,20735.0,0.1]
[1673726038964,0.14366091,20743.0,20740.0,0.1393]
[1673726039219,0.64879697,20746.0,20742.0,0.1395]
[1673726039471,0.35915227,20746.0,20743.0,0.19072595]
[1673726039717,0.00098626,20745.0,20744.0,0.19072595]
[1673726040031,0.65561725,20747.0,20744.0,0.19072595]
[1673726040240,0.28732181,20748.0,20743.0,0.3]
[1673726040241,0.14366091,20748.0,20746.0,0.1395]
[1673726040502,1.05614905,20752.0,20746.0,0.1395]
[1673726040503,1.54235767,20754.0,20747.0,0.66792764]
[1673726040779,1.32845946,20754.0,20753.0,0.1384]
[1673726041005,1.32845946,20754.0,20753.0,0.32912595]
[1673726041261,1.32845946,20754.0,20753.0,0.87382981]
[1673726041757,1.32845946,20754.0,20753.0,0.62547945]
[1673726042028,0.69255946,20754.0,20753.0,0.91195519]
[1673726042256,2.72970537,20756.0,20753.0,1.01195519]
[1673726042505,2.72970537,20756.0,20755.0,0.1395]
[1673726042754,0.21136498,20755.0,20752.0,0.26389522]
[1673726043008,0.36949914,20755.0,20752.0,0.25202054]
[1673726043258,0.21136498,20755.0,20753.0,0.37862004]
[1673726043515,2.72970537,20756.0,20754.0,0.66792764]
[1673726043757,2.72970537,20756.0,20755.0,0.2387]
[1673726044005,2.72970537,20756.0,20755.0,0.720511]
[1673726044265,2.72970537,20756.0,20755.0,1.19771269]
[1673726044770,2.72970537,20756.0,20755.0,1.49771269]
[1673726045259,0.38630537,20756.0,20755.0,1.49771269]
[1673726045521,0.46143629,20758.0,20755.0,2.45931991]
[1673726045774,0.46143629,20758.0,20757.0,0.2829493]
[1673726046017,0.46143629,20758.0,20757.0,2.12368099]
[1673726046261,0.0036465,20763.0,20760.0,0.1395]
[1673726046522,0.0036465,20763.0,20762.0,0.1386]
[1673726046762,0.0036465,20763.0,20762.0,0.4386]
[1673726047758,0.0036465,20763.0,20762.0,0.3]
[1673726048746,0.0036465,20763.0,20762.0,0.87720169]
[1673726048992,0.0036465,20763.0,20762.0,1.35885069]
[1673726051789,0.0036465,20763.0,20762.0,0.76901891]
[1673726051790,0.16178066,20763.0,20762.0,0.76901891]
[1673726052048,0.39507683,20763.0,20762.0,0.481649]
[1673726052309,0.23694267,20763.0,20761.0,0.481672]
[1673726052586,0.23694267,20763.0,20761.0,0.75663526]
[1673726053554,0.23694267,20763.0,20760.0,0.481675]
[1673726053555,0.15813416,20762.0,20758.0,1.70843625]
[1673726053823,0.6,20759.0,20758.0,0.70603625]
[1673726054066,0.6,20759.0,20758.0,1.18777325]
[1673726054827,0.6,20759.0,20758.0,1.46333381]
[1673726055825,0.0036465,20763.0,20758.0,1.46333381]
[1673726055826,0.6,20762.0,20758.0,1.48777325]
[1673726056071,0.6,20762.0,20759.0,0.96792764]
[1673726056324,0.6,20762.0,20761.0,0.1]
[1673726056582,0.0036465,20763.0,20761.0,0.1]
[1673726056583,0.0036465,20763.0,20761.0,0.87720169]
[1673726056834,0.0036465,20763.0,20762.0,1.444947]
[1673726057098,0.0036465,20763.0,20762.0,2.41287464]
[1673726057336,0.00368774,20765.0,20764.0,0.34449232]
[1673726057659,0.00368774,20765.0,20764.0,2.08929832]
[1673726057850,0.00368774,20765.0,20764.0,1.78929832]
[1673726058108,0.00368774,20765.0,20764.0,0.34449232]
[1673726058109,0.43074408,20765.0,20764.0,0.34449232]
[1673726058364,0.00368774,20765.0,20764.0,0.34449232]
[1673726058608,0.00368774,20765.0,20764.0,0.82609432]
[1673726059657,0.00368774,20765.0,20764.0,1.22609432]
[1673726061412,0.00368774,20765.0,20764.0,1.52733155]
[1673726061638,0.00368774,20765.0,20764.0,1.22609432]
[1673726061881,0.00368774,20765.0,20764.0,1.3897907]
[1673726062115,0.00368774,20765.0,20764.0,1.8713927]
[1673726062621,0.00368774,20765.0,20764.0,1.60769632]
[1673726062894,0.00368774,20765.0,20764.0,1.87912581]
[1673726063650,0.00368774,20765.0,20764.0,1.30769632]
[1673726064397,0.42927379,20765.0,20764.0,0.34449232]
[1673726064638,0.27113963,20765.0,20764.0,0.34449232]
[1673726065131,0.00368774,20765.0,20764.0,0.82609432]
[1673726065374,0.00368774,20765.0,20764.0,1.30769632]
[1673726067614,0.00368774,20765.0,20764.0,1.52996572]
[1673726068362,0.00368774,20765.0,20764.0,1.82996572]
[1673726068614,0.41156148,20765.0,20764.0,0.34449232]
[1673726068867,0.25342732,20765.0,20764.0,0.34449232]
[1673726069367,0.00368774,20765.0,20764.0,0.34449232]
[1673726069853,0.00368774,20765.0,20764.0,0.57533405]
[1673726072881,0.1618219,20765.0,20764.0,0.34449232]
[1673726073140,0.43474182,20765.0,20764.0,0.34449232]
[1673726073406,1.06711369,20765.0,20764.0,0.34449232]
[1673726073674,1.32403274,20765.0,20764.0,0.34449232]
[1673726073937,2.28753353,20765.0,20764.0,0.34449232]
[1673726074184,2.40433353,20765.0,20764.0,9.232e-05]
[1673726074432,2.40433353,20765.0,20760.0,0.25131448]
[1673726074433,2.39955109,20765.0,20760.0,0.25131448]
[1673726074703,0.481628,20763.0,20760.0,0.25131448]
[1673726074934,0.320345,20762.0,20758.0,0.70603625]
[1673726075217,0.63976216,20763.0,20758.0,0.70603625]
[1673726075218,0.15813416,20761.0,20758.0,0.70603625]
[1673726075434,0.15813416,20761.0,20758.0,0.95451764]
[1673726075690,0.15813416,20761.0,20759.0,0.27891758]
[1673726075946,0.481628,20763.0,20759.0,0.27891758]
[1673726076196,0.963258,20763.0,20759.0,0.46964353]
[1673726076940,0.00368774,20765.0,20760.0,0.19072595]
[1673726077182,0.00368774,20765.0,20761.0,1.63571695]
[1673726077441,0.00368774,20765.0,20762.0,0.19072595]
[1673726077692,0.00368774,20765.0,20763.0,0.481625]
[1673726077944,0.00368774,20765.0,20763.0,1.15397595]
[1673726078197,0.00368774,20765.0,20762.0,0.481637]
[1673726078476,0.27636262,20764.0,20762.0,0.481637]
[1673726078712,0.27636262,20764.0,20761.0,0.7128182]
[1673726079222,0.96341441,20763.0,20761.0,0.7128182]
[1673726079999,0.00368774,20765.0,20762.0,0.26052494]
[1673726080000,0.96341441,20764.0,20762.0,0.26052494]
[1673726080274,0.96335701,20763.0,20762.0,0.74216394]
[1673726081496,0.96335701,20763.0,20762.0,1.22381294]
[1673726081998,0.96335701,20763.0,20762.0,1.52381294]
[1673726082242,0.00368774,20765.0,20762.0,1.52381294]
[1673726082501,0.96328744,20764.0,20762.0,1.70851998]
[1673726082759,0.96328744,20764.0,20762.0,1.51779403]
[1673726083014,0.96328744,20764.0,20762.0,1.263288]
[1673726083260,0.96328744,20764.0,20762.0,1.4067373]
[1673726083513,0.96328744,20764.0,20763.0,0.3]
[1673726083767,0.96328744,20764.0,20763.0,1.26325]
[1673726084263,0.96328744,20764.0,20763.0,0.96325]
[1673726084752,0.96328744,20764.0,20763.0,1.19099809]
[1673726085246,0.96328744,20764.0,20763.0,1.49099809]
[1673726085500,0.00368774,20765.0,20763.0,1.49099809]
[1673726085739,0.00368774,20765.0,20764.0,0.3]
[1673726085979,0.00368774,20765.0,20764.0,1.263204]
[1673726086213,0.00368774,20765.0,20764.0,0.963204]
[1673726086474,0.96692154,20765.0,20764.0,0.963204]
[1673726086956,0.96692154,20765.0,20764.0,1.263204]
[1673726087485,0.96692154,20765.0,20764.0,1.53990196]
[1673726088479,0.96692154,20765.0,20764.0,1.23990196]
[1673726088721,0.96692154,20765.0,20764.0,0.963204]
[1673726089220,0.96692154,20765.0,20764.0,1.23129497]
[1673726089980,0.00368774,20765.0,20764.0,1.23129497]
[1673726090474,0.00535501,20768.0,20765.0,0.29537702]
[1673726090716,0.96324305,20767.0,20766.0,0.963112]
[1673726091751,0.96324305,20767.0,20766.0,1.263112]
[1673726092016,0.00535501,20768.0,20766.0,1.263112]
[1673726092293,0.00535501,20768.0,20767.0,0.1]
[1673726092519,0.00035501,20768.0,20767.0,1.64285365]
[1673726093266,0.00035501,20768.0,20767.0,1.24285365]
[1673726093528,0.00035501,20768.0,20767.0,0.963066]
[1673726093794,0.00035501,20768.0,20767.0,1.263066]
[1673726096016,0.00368774,20769.0,20768.0,0.19722284]
[1673726096281,0.00368774,20769.0,20768.0,2.86835787]
[1673726096522,0.00368774,20769.0,20768.0,2.29394335]
[1673726096785,0.00381572,20771.0,20768.0,2.81828694]
[1673726097053,0.00381572,20771.0,20770.0,0.14354946]
[1673726097312,0.00381572,20771.0,20770.0,3.61961636]
[1673726097583,0.00381572,20771.0,20770.0,3.25415003]
[1673726097854,0.00381572,20771.0,20770.0,3.72816645]
[1673726098382,0.00535501,20772.0,20771.0,0.1]
[1673726098642,0.00535501,20772.0,20771.0,0.6247756]
[1673726098883,0.00535501,20772.0,20771.0,0.7326351]
[1673726099673,0.00535501,20772.0,20771.0,0.72306684]
[1673726099919,0.00535501,20772.0,20771.0,0.77547018]
[1673726100169,0.00535501,20772.0,20771.0,1.07547018]
[1673726100427,0.00535501,20772.0,20771.0,0.78144]
[1673726100684,0.00535501,20772.0,20771.0,2.36904169]
[1673726100934,0.00535501,20772.0,20771.0,2.85048169]
[1673726102699,0.00535501,20772.0,20771.0,2.99381729]
[1673726102958,0.00535501,20772.0,20771.0,3.67962468]
[1673726103203,0.57534536,20782.0,20771.0,3.67962468]
[1673726103204,0.08015278,20786.0,20772.0,0.1]
[1673726103446,0.69654201,20784.0,20776.0,1.443957]
[1673726103720,0.00676961,20781.0,20777.0,1.07382065]
[1673726103967,0.00676961,20781.0,20779.0,1.443756]
[1673726104225,0.00676961,20781.0,20780.0,0.1]
[1673726104474,0.00676961,20781.0,20780.0,1.062462]
[1673726104990,0.24676961,20781.0,20780.0,1.062462]
[1673726105569,0.24676961,20781.0,20780.0,1.55318795]
[1673726105831,0.24676961,20781.0,20780.0,2.42275839]
[1673726107355,0.24676961,20781.0,20780.0,1.25861119]
[1673726107629,0.24676961,20781.0,20780.0,1.262462]
[1673726107873,0.24676961,20781.0,20780.0,1.81395862]
[1673726108121,0.24676961,20781.0,20780.0,1.362462]
[1673726108374,0.24676961,20781.0,20780.0,1.91442537]
[1673726108623,0.24676961,20781.0,20780.0,1.36266341]
[1673726108879,0.28724664,20790.0,20780.0,2.58233136]
[1673726108880,0.23938888,20790.0,20780.0,2.58233136]
[1673726109145,0.23938888,20790.0,20781.0,1.90414138]
[1673726109146,0.15813416,20790.0,20781.0,1.90414138]
[1673726109416,0.15813416,20790.0,20783.0,1.924584]
[1673726109676,0.29076739,20791.0,20784.0,1.0414033]
[1673726109937,0.29076739,20791.0,20785.0,0.74160133]
[1673726110206,0.27616384,20792.0,20786.0,2.03399595]
[1673726110462,0.24404657,20791.0,20787.0,0.19072595]
[1673726110736,0.00614814,20793.0,20788.0,0.962084]